fUST/lending_fUST_20240910
["ID","MTS","AMOUNT","RATE_DAILY","PERIOD"]
[337677105,1725940252723,-534.64,0.00022191,2]
[337677106,1725940252732,-891.47,0.00022191,2]
[337677107,1725940252741,-424.2960391,0.00022191,2]
[337677108,1725940252750,-911.02,0.00022191,2]
[337677109,1725940252759,-2252.89,0.00022191,2]
[337677110,1725940252769,-500.0,0.00022191,2]
[337677111,1725940252778,-500.0,0.00022191,2]
[337677112,1725940252787,-500.0,0.00022191,2]
[337677113,1725940252798,-500.0,0.00022191,2]
[337677114,1725940252807,-500.0,0.00022191,2]
[337677115,1725940252816,-500.0,0.00022191,2]
[337677116,1725940252825,-4754.32,0.00022191,2]
[337677117,1725940252834,-1218.45,0.00022191,2]
[337677118,1725940252843,-534.77,0.00022191,2]
[337677119,1725940252853,-2603.98,0.00022191,2]
[337677120,1725940252862,-500.0,0.00022191,2]
[337677121,1725940252871,-500.0,0.00022191,2]
[337677122,1725940252880,-523.15,0.00022191,2]
[337677123,1725940252890,-1904.32,0.00022191,2]
[337677124,1725940252903,-500.0,0.00022191,2]
[337677125,1725940252911,-500.0,0.00022191,2]
[337677126,1725940252920,-7933.51,0.00022191,2]
[337677127,1725940252929,-500.0,0.00022191,2]
[337677128,1725940252939,-500.0,0.00022191,2]
[337677129,1725940252948,-500.0,0.00022191,2]
[337677130,1725940252957,-1474.28,0.00022191,2]
[337677131,1725940252966,-500.0,0.00022191,2]
[337677132,1725940252977,-500.0,0.00022191,2]
[337677133,1725940252986,-1548.68,0.00022191,2]
[337677134,1725940252996,-500.0,0.00022191,2]
[337677135,1725940253005,-4885.63,0.00022191,2]
[337677136,1725940253015,-4603.23,0.00022191,2]
[337677137,1725940253026,-500.0,0.00022191,2]
[337677138,1725940253038,-506.77090354,0.00022191,2]
[337677139,1725940253048,-8856.77,0.00022191,2]
[337677140,1725940253059,-2268.52,0.00022191,2]
[337677141,1725940253068,-500.0,0.00022191,2]
[337677142,1725940253077,-500.0,0.00022191,2]
[337677143,1725940253087,-218.15357974,0.00022191,2]
[337677144,1725940253096,-500.0,0.00022191,2]
[337677145,1725940253105,-502.91650469,0.00022191,2]
[337677146,1725940253114,-500.0,0.00022191,2]
[337677147,1725940253123,-327.651041,0.00022191,7]
[337677148,1725940253133,-500.0,0.00022191,2]
[337677149,1725940253143,-592.91,0.00022191,2]
[337677150,1725940253152,-327.651041,0.00022191,7]
[337677151,1725940253163,-500.0,0.00022191,2]
[337677152,1725940253174,-500.0,0.00022191,2]
[337677153,1725940253184,-503.81408358,0.00022191,2]
[337677154,1725940253195,-887.41,0.00022191,2]
[337677155,1725940253206,-1131.85,0.00022191,2]
[337677156,1725940253215,-500.0,0.00022191,2]
[337677157,1725940253225,-194.70510989,0.00022191,2]
[337677158,1725940253234,-327.651041,0.00022191,7]
[337677159,1725940253244,-1094.82,0.00022191,2]
[337677160,1725940253255,-1728.83,0.00022191,2]
[337677161,1725940253264,-4459.94,0.00022191,2]
[337677162,1725940253273,-500.0,0.00022191,2]
[337677163,1725940253286,-327.651041,0.00022191,7]
[337677164,1725940253296,-3779.05,0.00022191,2]
[337677165,1725940253307,-500.0,0.00022191,2]
[337677166,1725940253326,-1644.75,0.00022191,2]
[337677167,1725940253351,-500.0,0.00022191,2]
[337677168,1725940253377,-289.805818,0.00022191,7]
[337677169,1725940253408,-289.805818,0.00022191,7]
[337677170,1725940253438,-1023.42,0.00022191,2]
[337677171,1725940253468,-500.0,0.00022191,2]
[337677172,1725940253484,-502.00305131,0.00022191,2]
[337677173,1725940253493,-500.0,0.00022191,2]
[337677174,1725940253502,-1475.2,0.00022191,2]
[337677175,1725940253513,-289.805818,0.00022191,7]
[337677176,1725940253524,-289.805818,0.00022191,7]
[337677177,1725940253535,-151.0,0.00022191,7]
[337677178,1725940253547,-151.0,0.00022191,7]
[337677179,1725940253559,-500.0,0.00022191,2]
[337677180,1725940253568,-151.0,0.00022191,7]
[337677181,1725940253694,-500.0,0.00022191,2]
[337677182,1725940253706,-1809.76,0.00022191,2]
[337677183,1725940253716,-1125.18,0.00022191,2]
[337677184,1725940253725,-541.25,0.00022191,2]
[337677185,1725940253738,-500.0,0.00022191,2]
[337677186,1725940253749,-500.0,0.00022191,2]
[337677187,1725940253760,-500.0,0.00022191,2]
[337677188,1725940253769,-500.0,0.00022191,2]
[337677189,1725940253778,-500.0,0.00022191,2]
[337677190,1725940253787,-500.0,0.00022191,2]
[337677191,1725940253796,-500.0,0.00022191,2]
[337677192,1725940253806,-178.54290633,0.00022191,2]
[337677193,1725940253815,-2211.34,0.00022191,2]
[337677194,1725940253824,-524.91,0.00022191,2]
[337677195,1725940253834,-265.363178,0.00022191,7]
[337677196,1725940253843,-265.363178,0.00022191,7]
[337677197,1725940253852,-571.79,0.00022191,2]
[337677198,1725940253861,-265.363178,0.00022191,7]
[337677199,1725940253870,-1709.98,0.00022191,2]
[337677200,1725940253880,-386.61517311,0.00022191,2]
[337677214,1725940897210,150.0,0.00012,5]
[337677217,1725941135430,2147.83188079,0.0001,2]
[337677220,1725941243947,35364.9,0.00017,2]
[337677250,1725941431971,-360.77949302,0.00017808,2]
[337677251,1725941431986,-139.22050698,0.00017808,2]
[337677252,1725941431996,-300.0,0.00019181,2]
[337677253,1725941432006,-60.77949302,0.00019182,2]
[337677254,1725941432018,-457.16028764,0.00019182,2]
[337677257,1725941437969,-24382.06021934,0.00019182,2]
[337677258,1725941437979,-250.0,0.00019782,2]
[337677259,1725941437989,-250.0,0.00019836,2]
[337677260,1725941437999,-250.0,0.0001989,2]
[337677261,1725941438010,-250.0,0.00019944,2]
[337677262,1725941438020,-250.0,0.00019998,2]
[337677263,1725941438030,-250.0,0.00020053,2]
[337677264,1725941438040,-250.0,0.00020107,2]
[337677265,1725941438049,-250.0,0.00020161,2]
[337677266,1725941438059,-250.0,0.00020215,2]
[337677267,1725941438069,-250.0,0.0002027,2]
[337677268,1725941438081,-207.6726394,0.000203,2]
[337677269,1725941438092,-250.0,0.00020324,2]
[337677270,1725941438102,-250.0,0.00020378,2]
[337677271,1725941438113,-250.0,0.00020432,2]
[337677272,1725941438122,-250.0,0.00020487,2]
[337677273,1725941438132,-250.0,0.00020541,2]
[337677274,1725941438142,-250.0,0.00020595,2]
[337677275,1725941438152,-250.0,0.00020649,2]
[337677276,1725941438162,-250.0,0.00020704,2]
[337677277,1725941438171,-250.0,0.00020758,2]
[337677278,1725941438181,-250.0,0.00020812,2]
[337677279,1725941438192,-433.5783829,0.00020822,2]
[337677280,1725941438203,-247.4484982,0.00020822,2]
[337677281,1725941438213,-2454.759584,0.00020995,2]
[337677282,1725941438224,-5000.0,0.00021,2]
[337677283,1725941438233,-420.0,0.00021099,2]
[337677284,1725941438245,-925.69,0.00021153,2]
[337677285,1725941438255,-8484.866,0.00021209,2]
[337677286,1725941438265,-469.44375367,0.00021346,2]
[337677287,1725941438275,-155.5028855,0.0002137,2]
[337677288,1725941438286,-153.0,0.0002137,2]
[337677289,1725941438297,-36136.63298583,0.000214,2]
[337677290,1725941438307,-2454.759584,0.00021495,2]
[337677291,1725941438316,-3000.0,0.000216,2]
[337677292,1725941438327,-1185.93370238,0.0002161,2]
[337677293,1725941438339,-1629.72427361,0.0002161,2]
[337677311,1725941440153,-184.34202401,0.0002161,2]
[337677312,1725941440163,-3000.0,0.0002162,2]
[337677313,1725941440173,-3000.0,0.0002163,2]
[337677314,1725941440182,-3000.0,0.0002164,2]
[337677315,1725941440191,-3000.0,0.0002165,2]
[337677316,1725941440200,-3000.0,0.0002166,2]
[337677317,1725941440212,-3000.0,0.0002167,2]
[337677318,1725941440222,-3000.0,0.0002168,2]
[337677319,1725941440231,-3000.0,0.0002169,2]
[337677320,1725941440241,-3000.0,0.000217,2]
[337677321,1725941440250,-3000.0,0.0002171,2]
[337677322,1725941440260,-3000.0,0.0002172,2]
[337677323,1725941440471,-500.0,0.00021729,2]
[337677324,1725941440481,-500.0,0.00021729,2]
[337677325,1725941440490,-500.0,0.00021729,2]
[337677326,1725941440500,-500.0,0.00021729,2]
[337677327,1725941440510,-500.0,0.00021729,2]
[337677328,1725941440520,-500.0,0.00021729,2]
[337677329,1725941440530,-500.0,0.00021729,2]
[337677330,1725941440540,-500.0,0.00021729,2]
[337677331,1725941440549,-500.0,0.00021729,2]
[337677332,1725941440558,-500.0,0.00021729,2]
[337677333,1725941440568,-500.0,0.00021729,2]
[337677334,1725941440578,-435.0,0.00021729,2]
[337677335,1725941440588,-500.0,0.00021729,2]
[337677336,1725941440598,-3000.0,0.0002173,2]
[337677337,1725941440608,-3000.0,0.0002174,2]
[337677338,1725941440618,-3000.0,0.0002175,2]
[337677339,1725941440627,-645.63,0.00021759,3]
[337677340,1725941440637,-3000.0,0.0002176,2]
[337677341,1725941440646,-430.41,0.0002176,3]
[337677342,1725941440655,-215.2,0.0002176,3]
[337677343,1725941440666,-647.48906479,0.00021769,2]
[337677344,1725941440675,-204.1013579,0.00021769,2]
[337677345,1725941440685,-500.0,0.00021769,2]
[337677346,1725941440695,-500.0,0.00021769,2]
[337677347,1725941440704,-500.0,0.00021769,2]
[337677348,1725941440714,-500.0,0.00021769,2]
[337677349,1725941440723,-500.0,0.00021769,2]
[337677350,1725941440734,-500.0,0.00021769,2]
[337677351,1725941440744,-500.0,0.00021769,2]
[337677352,1725941440755,-500.0,0.00021769,2]
[337677353,1725941440765,-500.0,0.00021769,2]
[337677354,1725941440775,-500.0,0.00021769,2]
[337677355,1725941440785,-500.0,0.00021769,2]
[337677356,1725941440795,-3000.0,0.0002177,2]
[337677357,1725941440805,-141654.119599,0.0002177,3]
[337677358,1725941440816,-3000.0,0.0002178,2]
[337677359,1725941440826,-3000.0,0.0002179,2]
[337677360,1725941440835,-1000.0,0.00021795,2]
[337677361,1725941440845,-3000.0,0.000218,2]
[337677362,1725941440857,-1252.12824541,0.00021807,2]
[337677363,1725941440874,-3000.0,0.0002181,2]
[337677364,1725941440883,-283308.239199,0.00021819,3]
[337677365,1725941440893,-3000.0,0.0002182,2]
[337677366,1725941440902,-3000.0,0.0002183,2]
[337677367,1725941440912,-3000.0,0.0002184,2]
[337677368,1725941440921,-3000.0,0.0002185,2]
[337677369,1725941440930,-3000.0,0.0002186,2]
[337677370,1725941440940,-3000.0,0.0002187,2]
[337677371,1725941440950,-3000.0,0.0002188,2]
[337677372,1725941440959,-3000.0,0.0002189,2]
[337677373,1725941440969,-238.471075,0.000219,3]
[337677374,1725941440979,-3000.0,0.000219,2]
[337677375,1725941440989,-3000.0,0.0002191,2]
[337677376,1725941440998,-358.4850641,0.00021917,2]
[337677377,1725941441008,-500.0,0.00021917,2]
[337677378,1725941441018,-398.03096745,0.00021917,2]
[337677379,1725941441027,-503.89402504,0.00021917,2]
[337677380,1725941441037,-500.0,0.00021917,2]
[337677381,1725941441047,-500.0,0.00021917,2]
[337677382,1725941441056,-503.96445369,0.00021917,2]
[337677383,1725941441066,-503.57061304,0.00021917,2]
[337677384,1725941441076,-500.0,0.00021917,2]
[337677385,1725941441086,-500.0,0.00021917,2]
[337677386,1725941441095,-501.87386815,0.00021917,2]
[337677387,1725941441105,-500.0,0.00021917,2]
[337677388,1725941441115,-504.96329044,0.00021917,2]
[337677389,1725941441125,-500.0,0.00021917,2]
[337677390,1725941441134,-500.0,0.00021917,2]
[337677391,1725941441145,-333.76089851,0.00021917,2]
[337677392,1725941441155,-500.83040021,0.00021917,2]
[337677393,1725941441165,-500.0,0.00021917,2]
[337677394,1725941441175,-504.4577273,0.00021917,2]
[337677395,1725941441185,-500.80439351,0.00021917,2]
[337677396,1725941441195,-500.98855835,0.00021917,2]
[337677397,1725941441204,-500.0,0.00021917,2]
[337677398,1725941441215,-550.43095378,0.00021917,2]
[337677399,1725941441224,-500.0,0.00021917,2]
[337677400,1725941441234,-502.50629704,0.00021917,2]
[337677401,1725941441243,-500.37811525,0.00021917,2]
[337677402,1725941441252,-502.92608811,0.00021917,2]
[337677403,1725941441261,-500.0,0.00021917,2]
[337677404,1725941441270,-503.2918749,0.00021917,2]
[337677405,1725941441280,-485.70526164,0.00021917,2]
[337677406,1725941441289,-500.0,0.00021917,2]
[337677407,1725941441299,-500.0,0.00021917,2]
[337677408,1725941441309,-831.76,0.00021917,2]
[337677409,1725941441318,-500.0,0.00021917,2]
[337677410,1725941441327,-771.15,0.00021917,2]
[337677411,1725941441338,-500.0,0.00021917,2]
[337677412,1725941441347,-500.0,0.00021917,2]
[337677413,1725941441364,-500.0,0.00021917,2]
[337677414,1725941441373,-501.30145709,0.00021917,2]
[337677415,1725941441382,-500.0,0.00021917,2]
[337677416,1725941441392,-500.0,0.00021917,2]
[337677417,1725941441402,-630.53331865,0.00021917,2]
[337677418,1725941441411,-500.0,0.00021917,2]
[337677419,1725941441420,-500.0,0.00021917,2]
[337677420,1725941441430,-500.0,0.00021917,2]
[337677421,1725941441440,-500.0,0.00021917,2]
[337677422,1725941441449,-500.0,0.00021917,2]
[337677423,1725941441459,-501.89407592,0.00021917,2]
[337677424,1725941441468,-500.0,0.00021917,2]
[337677425,1725941441479,-500.0,0.00021917,2]
[337677426,1725941441488,-502.58852765,0.00021917,2]
[337677427,1725941441498,-500.0,0.00021917,2]
[337677428,1725941441508,-500.0,0.00021917,2]
[337677429,1725941441518,-500.0,0.00021917,2]
[337677430,1725941441527,-500.0,0.00021917,2]
[337677431,1725941441537,-503.04682975,0.00021917,2]
[337677432,1725941441547,-500.0,0.00021917,2]
[337677433,1725941441557,-501.94627665,0.00021917,2]
[337677434,1725941441567,-503.09004834,0.00021917,2]
[337677435,1725941441576,-500.0,0.00021917,2]
[337677436,1725941441586,-961.44,0.00021917,2]
[337677437,1725941441595,-500.0,0.00021917,2]
[337677438,1725941441605,-503.44565539,0.00021917,2]
[337677439,1725941441614,-503.07509185,0.00021917,2]
[337677440,1725941441624,-500.0,0.00021917,2]
[337677441,1725941441634,-502.93161317,0.00021917,2]
[337677442,1725941441644,-322.87561837,0.00021917,2]
[337677443,1725941441654,-503.78826697,0.00021917,2]
[337677444,1725941441664,-500.0,0.00021917,2]
[337677445,1725941441674,-500.0,0.00021917,2]
[337677446,1725941441684,-678.03,0.00021917,2]
[337677447,1725941441694,-500.0,0.00021917,2]
[337677448,1725941441704,-1027.3,0.00021917,2]
[337677449,1725941441713,-500.92616293,0.00021917,2]
[337677450,1725941441725,-500.0,0.00021917,2]
[337677451,1725941441736,-500.0,0.00021917,2]
[337677452,1725941441745,-500.0,0.00021917,2]
[337677453,1725941441755,-501.05865038,0.00021917,2]
[337677454,1725941441764,-502.507917,0.00021917,2]
[337677455,1725941441774,-500.0,0.00021917,2]
[337677456,1725941441783,-500.0,0.00021917,2]
[337677457,1725941441793,-502.57110574,0.00021917,2]
[337677458,1725941441803,-500.0,0.00021917,2]
[337677459,1725941441812,-502.56308793,0.00021917,2]
[337677460,1725941441822,-336.55467153,0.00021917,2]
[337677461,1725941441831,-509.67127662,0.00021917,2]
[337677462,1725941441841,-500.0,0.00021917,2]
[337677463,1725941441850,-230.5802708,0.00021917,2]
[337677464,1725941441864,-500.0,0.00021917,2]
[337677465,1725941441873,-198.97782635,0.00021917,2]
[337677466,1725941441883,-503.59430299,0.00021917,2]
[337677467,1725941441892,-500.0,0.00021917,2]
[337677468,1725941441902,-502.02872896,0.00021917,2]
[337677469,1725941441911,-500.0,0.00021917,2]
[337677470,1725941441921,-500.0,0.00021917,2]
[337677471,1725941441930,-500.0,0.00021917,2]
[337677472,1725941441940,-500.0,0.00021917,2]
[337677473,1725941441949,-737.57,0.00021917,2]
[337677474,1725941441960,-513.56267429,0.00021917,2]
[337677475,1725941441969,-500.0,0.00021917,2]
[337677476,1725941441979,-500.0,0.00021917,2]
[337677477,1725941441988,-500.0,0.00021917,2]
[337677478,1725941441998,-500.0,0.00021917,2]
[337677479,1725941442007,-787.33,0.00021917,2]
[337677480,1725941442017,-500.0,0.00021917,2]
[337677481,1725941442026,-500.0,0.00021917,2]
[337677482,1725941442036,-500.0,0.00021917,2]
[337677483,1725941442045,-3850.55,0.00021917,2]
[337677484,1725941442055,-500.0,0.00021917,2]
[337677485,1725941442064,-703.81,0.00021917,2]
[337677486,1725941442074,-500.0,0.00021917,2]
[337677487,1725941442083,-500.0,0.00021917,2]
[337677488,1725941442093,-716.91,0.00021917,2]
[337677489,1725941442102,-500.0,0.00021917,2]
[337677490,1725941442114,-880.68,0.00021917,2]
[337677491,1725941442125,-502.98057109,0.00021917,2]
[337677492,1725941442134,-500.0,0.00021917,2]
[337677493,1725941442149,-500.0,0.00021917,2]
[337677494,1725941442159,-763.05,0.00021917,2]
[337677495,1725941442168,-500.0,0.00021917,2]
[337677496,1725941442177,-500.0,0.00021917,2]
[337677497,1725941442187,-432.91684951,0.00021917,2]
[337677498,1725941442196,-500.0,0.00021917,2]
[337677499,1725941442206,-500.0,0.00021917,2]
[337677500,1725941442216,-500.0,0.00021917,2]
[337677501,1725941442226,-500.0,0.00021917,2]
[337677502,1725941442235,-500.0,0.00021917,2]
[337677503,1725941442244,-950.14,0.00021917,2]
[337677504,1725941442255,-506.90701818,0.00021917,2]
[337677505,1725941442264,-500.0,0.00021917,2]
[337677506,1725941442274,-500.0,0.00021917,2]
[337677507,1725941442286,-500.0,0.00021917,2]
[337677508,1725941442298,-700.42,0.00021917,2]
[337677509,1725941442307,-500.0,0.00021917,2]
[337677510,1725941442317,-500.0,0.00021917,2]
[337677511,1725941442327,-500.0,0.00021917,2]
[337677512,1725941442337,-500.0,0.00021917,2]
[337677513,1725941442347,-500.0,0.00021917,2]
[337677514,1725941442358,-606.35996888,0.00021917,2]
[337677515,1725941442368,-500.0,0.00021917,2]
[337677516,1725941442377,-500.0,0.00021917,2]
[337677517,1725941442387,-500.0,0.00021917,2]
[337677518,1725941442397,-500.0,0.00021917,2]
[337677519,1725941442407,-500.0,0.00021917,2]
[337677520,1725941442416,-500.0,0.00021917,2]
[337677521,1725941442426,-500.0,0.00021917,2]
[337677522,1725941442436,-500.0,0.00021917,2]
[337677523,1725941442445,-500.0,0.00021917,2]
[337677524,1725941442454,-500.0,0.00021917,2]
[337677525,1725941442465,-844.49,0.00021917,2]
[337677526,1725941442474,-500.0,0.00021917,2]
[337677528,1725941442484,-592.93,0.00021917,2]
[337677529,1725941442493,-502.08456567,0.00021917,2]
[337677530,1725941442503,-500.0,0.00021917,2]
[337677531,1725941442513,-500.0,0.00021917,2]
[337677532,1725941442522,-519.23,0.00021917,2]
[337677533,1725941442532,-522.96,0.00021917,2]
[337677534,1725941442542,-500.0,0.00021917,2]
[337677535,1725941442551,-500.0,0.00021917,2]
[337677536,1725941442561,-500.0,0.00021917,2]
[337677537,1725941442570,-500.0,0.00021917,2]
[337677538,1725941442580,-500.0,0.00021917,2]
[337677539,1725941442589,-500.0,0.00021917,2]
[337677540,1725941442598,-500.0,0.00021917,2]
[337677541,1725941442608,-500.0,0.00021917,2]
[337677542,1725941442618,-1294.13,0.00021917,2]
[337677543,1725941442627,-500.0,0.00021917,2]
[337677544,1725941442637,-500.0,0.00021917,2]
[337677545,1725941442648,-500.0,0.00021917,2]
[337677546,1725941442657,-500.0,0.00021917,2]
[337677547,1725941442667,-685.07,0.00021917,2]
[337677548,1725941442676,-500.0,0.00021917,2]
[337677549,1725941442686,-500.0,0.00021917,2]
[337677550,1725941442695,-500.0,0.00021917,2]
[337677551,1725941442704,-500.0,0.00021917,2]
[337677552,1725941442715,-500.0,0.00021917,2]
[337677553,1725941442727,-500.0,0.00021917,2]
[337677554,1725941442738,-500.0,0.00021917,2]
[337677555,1725941442748,-500.0,0.00021917,2]
[337677556,1725941442759,-421.61345965,0.00021917,2]
[337677557,1725941442768,-568.21,0.00021917,2]
[337677558,1725941442778,-1167.68,0.00021917,2]
[337677559,1725941442787,-500.0,0.00021917,2]
[337677560,1725941442796,-500.0,0.00021917,2]
[337677561,1725941442805,-516.99331206,0.00021917,2]
[337677563,1725941442815,-500.0,0.00021917,2]
[337677565,1725941442824,-161.85674528,0.00021917,2]
[337677567,1725941442834,-500.0,0.00021917,2]
[337677569,1725941442844,-698.92,0.00021917,2]
[337677571,1725941442855,-500.0,0.00021917,2]
[337677573,1725941442865,-278.25384775,0.00021917,2]
[337677575,1725941442874,-980.37,0.00021917,2]
[337677577,1725941442884,-500.0,0.00021917,2]
[337677579,1725941442893,-500.0,0.00021917,2]
[337677581,1725941442903,-500.0,0.00021917,2]
[337677584,1725941442913,-281.74,0.00021917,2]
[337677586,1725941442923,-942.52,0.00021917,2]
[337677588,1725941442932,-500.0,0.00021917,2]
[337677590,1725941442942,-500.0,0.00021917,2]
[337677592,1725941442951,-500.0,0.00021917,2]
[337677594,1725941442960,-897.67,0.00021917,2]
[337677596,1725941442969,-500.0,0.00021917,2]
[337677598,1725941442978,-500.87890431,0.00021917,2]
[337677599,1725941442988,-500.0,0.00021917,2]
[337677601,1725941442997,-500.0,0.00021917,2]
[337677604,1725941443007,-601.06,0.00021917,2]
[337677606,1725941443016,-500.0,0.00021917,2]
[337677608,1725941443025,-500.0,0.00021917,2]
[337677610,1725941443034,-500.0,0.00021917,2]
[337677612,1725941443044,-523.15,0.00021917,2]
[337677614,1725941443053,-500.0,0.00021917,2]
[337677616,1725941443062,-507.48637224,0.00021917,2]
[337677618,1725941443071,-500.0,0.00021917,2]
[337677620,1725941443080,-1116.06,0.00021917,2]
[337677622,1725941443090,-500.0,0.00021917,2]
[337677624,1725941443098,-500.0,0.00021917,2]
[337677626,1725941443108,-500.0,0.00021917,2]
[337677627,1725941443117,-500.0,0.00021917,2]
[337677628,1725941443126,-500.0,0.00021917,2]
[337677629,1725941443135,-500.0,0.00021917,2]
[337677630,1725941443145,-1306.71,0.00021917,2]
[337677631,1725941443154,-535.04,0.00021917,2]
[337677632,1725941443164,-687.57,0.00021917,2]
[337677633,1725941443173,-1067.36,0.00021917,2]
[337677634,1725941443183,-503.82524376,0.00021917,2]
[337677635,1725941443193,-500.0,0.00021917,2]
[337677636,1725941443202,-547.96,0.00021917,2]
[337677637,1725941443213,-500.0,0.00021917,2]
[337677638,1725941443225,-527.61396848,0.00021917,2]
[337677639,1725941443234,-502.71739574,0.00021917,2]
[337677640,1725941443243,-591.75,0.00021917,2]
[337677641,1725941443252,-500.0,0.00021917,2]
[337677642,1725941443263,-511.45152402,0.00021917,2]
[337677643,1725941443271,-502.75758348,0.00021917,2]
[337677644,1725941443281,-500.0,0.00021917,2]
[337677645,1725941443290,-500.0,0.00021917,2]
[337677646,1725941443303,-500.0,0.00021917,2]
[337677647,1725941443315,-500.0,0.00021917,2]
[337677648,1725941443325,-333.40626722,0.00021917,2]
[337677649,1725941443336,-775.83,0.00021917,2]
[337677650,1725941443346,-1620.21,0.00021917,2]
[337677651,1725941443357,-500.0,0.00021917,2]
[337677652,1725941443367,-500.0,0.00021917,2]
[337677653,1725941443376,-500.0,0.00021917,2]
[337677654,1725941443386,-505.65509984,0.00021917,2]
[337677655,1725941443395,-500.0,0.00021917,2]
[337677656,1725941443404,-500.0,0.00021917,2]
[337677657,1725941443414,-500.0,0.00021917,2]
[337677658,1725941443423,-500.0,0.00021917,2]
[337677659,1725941443432,-500.0,0.00021917,2]
[337677660,1725941443441,-382.48163029,0.00021917,2]
[337677661,1725941443450,-503.65518906,0.00021917,2]
[337677662,1725941443459,-500.0,0.00021917,2]
[337677663,1725941443468,-619.02574312,0.00021917,2]
[337677664,1725941443477,-715.77,0.00021917,2]
[337677665,1725941443487,-554.47,0.00021917,2]
[337677666,1725941443496,-500.0,0.00021917,2]
[337677667,1725941443505,-607.13,0.00021917,2]
[337677668,1725941443515,-500.0,0.00021917,2]
[337677669,1725941443526,-1240.77,0.00021917,2]
[337677670,1725941443536,-500.0,0.00021917,2]
[337677671,1725941443546,-500.0,0.00021917,2]
[337677672,1725941443559,-500.0,0.00021917,2]
[337677673,1725941443568,-1928.17,0.00021917,2]
[337677674,1725941443577,-500.0,0.00021917,2]
[337677675,1725941443587,-196.82578599,0.00021917,2]
[337677676,1725941443596,-500.0,0.00021917,2]
[337677677,1725941443606,-645.41,0.00021917,2]
[337677678,1725941443616,-500.0,0.00021917,2]
[337677679,1725941443625,-1129.81,0.00021917,2]
[337677680,1725941443635,-500.0,0.00021917,2]
[337677681,1725941443644,-500.0,0.00021917,2]
[337677682,1725941443653,-511.11645279,0.00021917,2]
[337677683,1725941443663,-500.0,0.00021917,2]
[337677684,1725941443672,-2097.23,0.00021917,2]
[337677685,1725941443682,-500.0,0.00021917,2]
[337677686,1725941443691,-500.0,0.00021917,2]
[337677687,1725941443700,-500.0,0.00021917,2]
[337677688,1725941443710,-500.0,0.00021917,2]
[337677689,1725941443719,-695.16,0.00021917,2]
[337677690,1725941443728,-500.0,0.00021917,2]
[337677691,1725941443737,-1551.46,0.00021917,2]
[337677692,1725941443746,-500.0,0.00021917,2]
[337677693,1725941443756,-319.60279887,0.00021917,2]
[337677697,1725941446021,-524.29999999,0.00021917,2]
[337677743,1725942457003,736.7,0.00028,120]
[337677756,1725942564170,-500.0,0.00017808,2]
[337677757,1725942564195,-250.0,0.00019734,2]
[337677758,1725942564217,-174.7723176,0.00019788,2]
[337677819,1725942638138,-300.0,0.00019203,2]
[337677820,1725942638150,-200.0,0.00019204,2]
[337677835,1725942640254,-24700.0,0.00019204,2]
[337677836,1725942640264,-75.2276824,0.00019788,2]
[337677837,1725942640274,-250.0,0.00019842,2]